bitfinex/quotes_SOLUSD_20260220
["timestamp","ask_amount","ask_price","bid_price","bid_amount"]
[1771598760254,7.17820697,83.02,82.98,102.63417655]
[1771598760455,7.17820697,83.04,82.981,0.28432314]
[1771598760657,7.17820697,83.03,82.983,0.28432314]
[1771598761262,7.17820697,83.02,82.982,42.17782168]
[1771598761462,7.17820697,83.03,82.982,102.43185267]
[1771598761884,7.17820697,83.03,82.982,42.17782168]
[1771598762059,7.17820697,83.02,82.982,42.17782168]
[1771598762373,7.17820697,83.03,82.982,42.17782168]
[1771598762960,7.17820697,83.04,82.983,0.28432314]
[1771598763263,7.17820697,83.03,82.983,0.28432314]
[1771598763976,7.17820697,83.04,82.983,0.28432314]
[1771598764174,7.17820697,83.05,82.983,0.28432314]
[1771598764478,12.03673611,83.079,82.983,0.28432314]
[1771598764678,12.03673611,83.079,82.985,0.28432314]
[1771598764886,7.17820697,83.07,82.987,0.28432314]
[1771598765176,7.17820697,83.07,82.989,0.28432314]
[1771598765379,7.17820697,83.08,82.989,11.14279622]
[1771598765579,7.17820697,83.06,82.991,0.28432314]
[1771598766283,7.17820697,83.07,82.991,0.28432314]
[1771598766783,7.17820697,83.06,82.991,0.28432314]
[1771598767658,7.17820697,83.04,82.993,0.28432314]
[1771598767863,7.17820697,83.0,82.956,0.25696]
[1771598768068,7.17820697,83.0,82.981,12.05095142]
[1771598768279,7.17820697,83.02,82.981,42.17832997]
[1771598768465,7.17820697,83.03,82.981,42.17832997]
[1771598768966,7.17820697,83.04,82.982,0.14216157]
[1771598769163,7.17820697,83.04,82.982,0.28432314]
[1771598769382,7.17820697,83.02,82.981,42.17832997]
[1771598770264,7.17820697,83.01,82.981,42.17832997]
[1771598771079,7.17820697,83.01,82.981,12.05095142]
[1771598771582,7.17820697,83.0,82.976,12.05155474]
[1771598771774,7.17820697,82.99,82.956,0.25696]
[1771598771973,7.17820697,83.0,82.956,0.25696]
[1771598772484,7.17820697,82.99,82.966,12.05309855]
[1771598772979,7.17820697,82.99,82.96,12.25389222]
[1771598773866,12.04978973,82.989,82.96,0.2]
[1771598774067,7.17820697,82.97,82.96,0.2]
[1771598774980,7.17820697,82.98,82.96,0.2]
[1771598775185,48.17480155,83.031,82.961,12.05385663]
[1771598775186,7.17820697,83.0,82.961,12.05385663]
[1771598775779,12.0451452,83.021,82.961,12.05385663]
[1771598775780,12.0451452,83.021,82.961,42.1884982]
[1771598775978,7.17820697,83.02,82.962,0.28432314]
[1771598776177,7.17820697,83.04,82.962,0.28432314]
[1771598776380,7.17820697,83.04,82.962,11.14279622]
[1771598777398,7.17820697,83.03,82.962,11.14279622]
[1771598777599,7.17820697,83.05,82.962,11.14279622]
[1771598777982,12.04253423,83.039,82.964,0.28432314]
[1771598778500,7.17820697,83.02,82.964,0.14216157]
[1771598778871,7.17820697,83.02,82.964,0.28432314]
[1771598779770,0.28432314,83.029,82.964,0.28432314]
[1771598780786,7.17820697,83.04,82.966,0.28432314]
[1771598780986,7.17820697,83.02,82.966,0.28432314]
[1771598781289,0.28432314,83.039,82.966,0.28432314]
[1771598781489,7.17820697,83.03,82.966,0.28432314]
[1771598782565,7.17820697,83.03,82.968,0.28432314]
[1771598782976,7.17820697,83.05,82.968,0.28432314]
[1771598783176,7.17820697,83.04,82.968,0.28432314]
[1771598783384,7.17820697,83.05,82.968,0.28432314]
[1771598783974,7.17820697,83.06,82.989,0.5]
[1771598784181,7.17820697,83.05,82.999,0.5]
[1771598785002,0.28432314,83.059,83.001,0.5]
[1771598785200,7.17820697,83.05,83.001,0.5]
[1771598786293,7.17820697,83.06,83.009,0.5]
[1771598786697,0.28432314,83.069,83.009,0.5]
[1771598787007,7.17820697,83.06,83.009,0.5]
[1771598787504,12.03963447,83.059,83.011,0.5]
[1771598787705,7.17820697,83.05,83.011,0.5]
[1771598788114,0.28432314,83.039,83.01,12.04674135]
[1771598788608,7.17820697,83.03,83.006,12.04727301]
[1771598789693,7.17820697,83.04,83.007,0.5]
[1771598790300,12.04253423,83.039,83.007,0.5]
[1771598790690,7.17820697,83.03,82.997,12.54862826]
[1771598791302,7.17820697,83.03,82.998,0.5]
[1771598791814,7.17820697,83.03,82.981,0.5]
[1771598792111,7.17820697,82.99,82.961,12.05385663]
[1771598792291,7.17820697,82.99,82.962,0.5]
[1771598792493,0.28432314,82.999,82.962,0.5]
[1771598793205,90.32988472,83.029,82.962,0.5]
[1771598793206,7.17820697,83.01,82.962,0.5]
[1771598793596,0.28432314,83.009,82.962,0.5]
[1771598794214,12.04703161,83.008,82.963,42.18748115]
[1771598794389,12.04703161,83.008,82.964,0.5]
[1771598795407,7.17820697,83.02,82.968,0.5]
[1771598796106,7.17820697,83.03,82.968,0.5]
[1771598796309,48.14323387,83.086,82.988,0.5]
[1771598796310,7.17820697,83.04,82.988,0.5]
[1771598796997,7.17820697,83.03,82.988,0.5]
[1771598797399,7.17820697,83.02,82.988,0.5]
[1771598798736,12.04543538,83.019,82.989,12.04978973]
[1771598799015,0.28432314,83.029,82.99,0.5]
[1771598799233,7.17820697,83.02,82.99,0.5]
[1771598799812,7.17820697,83.05,82.99,0.5]
[1771598800214,7.17820697,83.05,82.998,0.5]
[1771598800516,12.04108417,83.049,83.0,0.5]
[1771598801099,7.17820697,83.03,83.0,0.5]
[1771598801905,7.17523098,83.03,82.999,12.04833793]
[1771598802113,7.17523098,83.04,83.0,0.5]
[1771598802496,7.17523098,83.05,83.002,0.5]
[1771598803223,7.17523098,83.04,83.002,0.5]
[1771598803610,0.28432314,83.039,83.002,0.5]
[1771598803809,7.17523098,83.04,83.002,0.5]
[1771598804122,7.17523098,83.03,83.002,0.5]
[1771598804522,7.17523098,83.03,83.001,12.04804761]
[1771598804711,7.17523098,83.02,82.993,12.04920896]
[1771598804909,7.17523098,83.02,82.993,12.54920896]
[1771598805111,7.17523098,83.01,82.993,12.04920896]
[1771598805518,7.17523098,83.02,82.993,12.04920896]
[1771598806223,7.17523098,83.0,82.983,0.5]
[1771598806605,7.17523098,83.01,82.961,0.5]
[1771598806806,7.17523098,83.0,82.961,0.5]
[1771598807514,7.17523098,83.0,82.962,0.5]
[1771598807924,7.17523098,82.98,82.961,12.05385663]
[1771598808128,0.28432314,83.037,82.961,12.05385663]
[1771598808329,7.17523098,82.98,82.961,12.05385663]
[1771598808629,7.17523098,82.99,82.961,12.05385663]
[1771598810231,7.17523098,82.99,82.962,0.5]
[1771598811108,7.17523098,82.98,82.961,12.05385663]
[1771598811509,7.17523098,82.99,82.962,0.5]
[1771598811711,7.17523098,82.99,82.961,12.05385663]
[1771598811911,7.17523098,82.99,82.956,0.25696]
[1771598811912,7.17523098,82.97,82.956,0.25696]
[1771598812829,7.17523098,82.98,82.961,12.05385663]
[1771598813029,7.17523098,82.97,82.956,0.25696]
[1771598813526,7.17523098,82.97,82.959,12.05406612]
[1771598813726,7.17523098,82.97,82.956,0.25696]
[1771598813919,7.17523098,82.98,82.956,0.25696]
[1771598814113,0.28432314,82.969,82.956,0.25696]
[1771598814314,0.28432314,82.969,82.95,0.2]
[1771598814520,0.28432314,82.959,82.92,0.2]
[1771598814830,12.05719935,82.938,82.92,0.2]
[1771598815027,7.17523098,82.93,82.92,0.2]
[1771598815331,7.17523098,82.93,82.91,0.2]
[1771598815509,7.17523098,82.92,82.91,0.2]
[1771598816347,12.05719935,82.938,82.911,12.06112578]
[1771598816513,48.20662057,82.977,82.912,0.5]
[1771598816708,7.17523098,82.95,82.912,0.5]
[1771598816928,12.05560042,82.949,82.914,0.5]
[1771598817114,7.17523098,82.94,82.913,12.06083485]
[1771598818035,7.17523098,82.92,82.91,0.2]
[1771598818735,0.28432314,82.929,82.91,0.2]
[1771598818928,7.17523098,82.92,82.91,0.2]
[1771598819133,0.28432314,82.929,82.91,0.2]
[1771598819433,7.17523098,82.93,82.91,0.2]
[1771598819638,7.17523098,82.92,82.91,0.2]
[1771598819824,12.05850788,82.929,82.91,0.2]
[1771598820028,7.17523098,82.93,82.911,12.06112578]
[1771598820229,7.45955412,82.94,82.912,0.5]
[1771598820418,7.17523098,82.95,82.912,0.5]
[1771598820738,7.17523098,82.96,82.912,0.5]
[1771598820919,7.17523098,82.95,82.912,0.5]
[1771598821121,7.17523098,82.94,82.914,0.5]
[1771598821421,7.17523098,82.93,82.91,0.2]
[1771598822037,7.17523098,82.92,82.91,0.2]
[1771598822334,0.28432314,82.919,82.87,0.1]
[1771598822538,7.17523098,82.91,82.881,12.06549148]
[1771598822737,42.19460149,82.949,82.882,0.5]
[1771598822943,7.17523098,82.92,82.882,0.5]
[1771598823143,19.23369304,82.93,82.884,0.5]
[1771598823317,7.17523098,82.92,82.884,0.5]
[1771598823632,12.05846206,82.93,82.884,0.5]
[1771598823820,7.17523098,82.91,82.884,0.5]
[1771598824020,42.20436824,82.93,82.884,0.5]
[1771598824241,7.17523098,82.91,82.884,0.5]
[1771598824448,7.17523098,82.89,82.87,0.1]
[1771598825240,42.20986745,82.919,82.87,0.1]
[1771598825439,7.17523098,82.88,82.87,0.1]
[1771598825647,7.17523098,82.88,82.638,44.69599943]
[1771598825648,7.17523098,82.88,82.842,0.5]
[1771598825842,7.17523098,82.86,82.837,12.07190023]
[1771598826076,7.17523098,82.85,82.836,11.73305852]
[1771598826434,7.17523098,82.84,82.811,12.0755569]
[1771598826635,7.17523098,82.84,82.812,0.5]
[1771598827030,7.17523098,82.83,82.812,0.5]
[1771598827228,7.17523098,82.83,82.81,0.2]
[1771598827229,7.17523098,82.84,82.814,12.07525297]
[1771598827425,7.17523098,82.84,82.81,0.2]
[1771598827426,42.53495387,82.839,82.81,0.2]
[1771598827744,7.17523098,82.83,82.811,0.5]
[1771598827953,30.17555514,82.849,82.812,0.5]
[1771598827954,7.17523098,82.84,82.812,0.5]
[1771598828246,12.07160878,82.839,82.812,0.5]
[1771598828451,0.28432314,82.839,82.811,0.5]
[1771598828647,7.17523098,82.83,82.811,0.5]
[1771598828946,0.28432314,82.829,82.81,0.2]
[1771598829248,7.17523098,82.83,82.81,0.2]
[1771598829453,0.28432314,82.839,82.812,0.5]
[1771598830252,42.23125837,82.877,82.812,0.5]
[1771598830439,7.17523098,82.86,82.812,0.5]
[1771598831139,7.17523098,82.87,82.818,0.5]
[1771598831345,7.17523098,82.87,82.82,0.5]
[1771598831544,12.06272617,82.9,82.828,0.5]
[1771598831747,7.17523098,82.88,82.828,0.5]
[1771598832136,7.17523098,82.89,82.828,0.5]
[1771598832349,19.23795715,82.9,82.838,0.5]
[1771598832546,7.17523098,82.9,82.847,0.28432314]
[1771598832756,7.17523098,82.9,82.848,0.5]
[1771598833350,7.17523098,82.91,82.848,0.5]
[1771598833583,12.06141673,82.909,82.849,42.24553102]
[1771598833746,7.17523098,82.9,82.85,0.5]
[1771598834246,42.21495856,82.909,82.85,0.5]
[1771598834454,7.17523098,82.9,82.85,0.5]
[1771598834643,7.17523098,82.89,82.85,0.5]
[1771598835450,0.28432314,82.899,82.85,0.5]
[1771598835647,7.17523098,82.89,82.852,0.5]
[1771598835846,12.0630172,82.898,82.852,0.5]
[1771598835847,7.17523098,82.88,82.852,0.5]
[1771598836047,7.17523098,82.88,82.851,12.06986035]
[1771598836246,0.28432314,82.889,82.851,12.56986035]
[1771598836448,7.17523098,82.88,82.851,12.56986035]
[1771598837259,7.17523098,82.87,82.842,12.07117162]
[1771598837554,7.17523098,82.87,82.843,0.5]
[1771598837937,0.28432314,82.889,82.843,0.5]
[1771598838243,7.17523098,82.88,82.843,0.5]
[1771598838439,7.17523098,82.89,82.843,0.5]
[1771598838637,7.17523098,82.91,82.854,0.28432314]
[1771598838833,7.17523098,82.91,82.859,0.5]
[1771598839039,7.17523098,82.93,82.869,0.5]
[1771598839332,7.17523098,82.92,82.869,0.5]
[1771598839742,12.05705397,82.939,82.871,0.5]
[1771598839743,7.17523098,82.93,82.871,0.5]
[1771598840245,7.17523098,82.92,82.871,0.5]
[1771598840760,7.17523098,82.91,82.871,0.5]
[1771598841257,7.17523098,82.92,82.871,0.5]
[1771598841472,7.17523098,82.93,82.871,0.5]
[1771598842040,12.20066945,82.929,82.872,42.23380634]
[1771598842368,12.20066945,82.929,82.873,0.5]
[1771598843847,7.17523098,82.92,82.873,0.5]
[1771598844043,12.05690502,82.941,82.875,0.5]
[1771598844354,19.23075318,82.95,82.889,0.5]
[1771598844561,7.17523098,82.96,82.893,0.5]
[1771598844737,7.17523098,82.96,82.899,0.5]
[1771598844738,12.05488292,82.954,82.899,0.5]
[1771598844935,7.17523098,82.95,82.899,0.5]
[1771598845159,7.17523098,82.92,82.899,0.5]
[1771598845360,7.17523098,82.92,82.876,42.23176794]
[1771598846049,7.17523098,82.92,82.808,36.19]
[1771598846249,7.17523098,82.92,82.843,0.28432314]
[1771598846764,7.64442258,82.91,82.843,0.28432314]
[1771598846956,12.05992301,82.92,82.831,10.85847308]
[1771598846957,7.64442258,82.92,82.831,10.85847308]
[1771598847150,7.64442258,82.92,82.843,0.28432314]
[1771598847151,12.05996213,82.919,82.843,0.28432314]
[1771598847347,7.64442258,82.92,82.849,0.28432314]
[1771598847560,12.05850788,82.929,82.868,0.49630542]
[1771598848065,0.4691916,82.939,82.878,0.49630542]
[1771598848242,0.4691916,82.938,82.88,0.49630542]
[1771598849357,7.17523098,82.93,82.88,0.49630542]
[1771598849558,0.2,82.94,82.898,0.49630542]
[1771598849954,0.4691916,82.981,82.919,0.28432314]
[1771598850156,7.17523098,82.98,82.926,0.49630542]
[1771598850355,0.4691916,82.988,82.93,0.49630542]
[1771598850553,7.17523098,83.0,82.938,0.49630542]
[1771598850760,12.33266107,82.999,82.938,0.49630542]
[1771598851147,0.4691916,82.998,82.938,0.49630542]
[1771598851340,0.4691916,82.989,82.938,0.49630542]
[1771598852561,0.4691916,82.989,82.94,0.49630542]
[1771598852774,7.17523098,83.0,82.94,0.49630542]
[1771598852775,0.4691916,82.999,82.94,0.49630542]
[1771598853147,0.4691916,82.999,82.945,0.14216157]
[1771598853353,0.4691916,82.999,82.948,0.49630542]
[1771598853582,0.4691916,82.989,82.948,0.49630542]
[1771598854071,0.4691916,82.979,82.94,0.49630542]
[1771598854573,0.4691916,82.979,82.942,0.49630542]
[1771598855573,12.04886355,82.996,82.942,0.49630542]
[1771598855878,12.51752953,82.999,82.942,0.49630542]
[1771598856045,0.4691916,82.998,82.942,0.49630542]
[1771598856251,0.4691916,82.989,82.942,0.49630542]
[1771598856762,0.28432314,82.997,82.941,12.05676324]
[1771598856763,0.4691916,82.969,82.941,12.05676324]
[1771598858066,12.05283964,82.968,82.932,12.05807167]
[1771598858272,12.54971063,82.968,82.932,12.05807167]
[1771598859372,12.54971063,82.968,82.882,0.47514503]
[1771598859373,0.49687099,82.967,82.882,0.47514503]
[1771598859548,0.49687099,82.959,82.882,0.47514503]
[1771598859750,0.49687099,82.949,82.888,0.47514503]
[1771598859950,0.49687099,82.949,82.881,150.81864357]
[1771598859951,7.17523098,82.94,82.896,0.47514503]
[1771598860171,0.49687099,82.947,82.898,0.47514503]
[1771598860358,0.49687099,82.939,82.898,0.47514503]
[1771598860666,12.55261675,82.948,82.898,0.47514503]
[1771598860856,7.17523098,82.95,82.898,0.47514503]
[1771598861060,0.49687099,82.939,82.898,0.47514503]
[1771598861261,198.82632218,82.987,82.898,0.47514503]
[1771598861262,0.49687099,82.949,82.898,0.47514503]
[1771598862556,12.05574576,82.948,82.9,0.47514503]
[1771598863952,12.05574576,82.948,82.902,0.47514503]
[1771598864563,12.05448379,82.957,82.902,0.47514503]
[1771598864769,0.49687099,82.939,82.902,0.47514503]
[1771598865657,0.49687099,82.939,82.856,48.27635631]
[1771598865658,0.49687099,82.928,82.888,0.47514503]
[1771598865858,0.49687099,82.918,82.888,0.47514503]
[1771598866088,7.18826471,82.93,82.889,12.53947202]
[1771598866266,7.18826471,82.92,82.889,12.53947202]
[1771598866764,0.49687099,82.928,82.889,12.53947202]
[1771598866765,0.49687099,82.928,82.89,0.47514503]
[1771598867382,7.18826471,82.92,82.89,0.47514503]
[1771598867577,0.49687099,82.899,82.838,0.47514503]
[1771598867776,0.49687099,82.899,82.841,0.75946817]
[1771598867971,0.49687099,82.888,82.844,0.47514503]
[1771598868281,7.18826471,82.89,82.844,0.47514503]
[1771598868475,7.18826471,82.9,82.848,0.47514503]
[1771598869663,7.6851357,82.9,82.848,0.47514503]
[1771598869863,48.23132638,82.934,82.848,0.47514503]
[1771598869864,0.49687099,82.878,82.848,12.07016292]
[1771598870075,0.49687099,82.878,82.84,0.47514503]
[1771598870684,0.49687099,82.869,82.831,12.07277468]
[1771598870980,42.23023925,82.879,82.832,0.47514503]
[1771598870981,12.06578264,82.879,82.832,0.47514503]
[1771598871177,7.18826471,82.88,82.832,0.47514503]
[1771598871380,19.25390185,82.88,82.832,0.47514503]
[1771598871584,0.49687099,82.879,82.832,0.47514503]
[1771598871762,7.18826471,82.86,82.831,12.07277468]
[1771598872164,7.18826471,82.85,82.812,0.47514503]
[1771598872365,7.6851357,82.85,82.812,0.47514503]
[1771598872565,7.18826471,82.86,82.812,0.47514503]
[1771598872887,12.06812864,82.863,82.812,0.47514503]
[1771598872888,12.06782115,82.865,82.812,0.47514503]
[1771598873083,7.18826471,82.84,82.811,12.07569042]
[1771598873483,0.49687099,82.849,82.811,12.07569042]
[1771598873791,7.18826471,82.85,82.812,0.47514503]
[1771598873983,0.49687099,82.859,82.812,0.47514503]
[1771598874186,0.49687099,82.859,82.814,0.47514503]
[1771598874784,7.18826471,82.85,82.814,0.47514503]
[1771598874987,0.49687099,82.857,82.814,0.47514503]
[1771598875185,7.18826471,82.85,82.814,0.47514503]
[1771598875601,0.49687099,82.857,82.814,0.47514503]
[1771598875774,7.18826471,82.86,82.814,0.47514503]
[1771598875974,7.6851357,82.86,82.814,0.47514503]
[1771598876393,7.6851357,82.86,82.796,96.62219254]
[1771598876394,12.06869501,82.859,82.816,0.47514503]
[1771598876578,7.18826471,82.85,82.816,0.47514503]
[1771598876775,7.18826471,82.86,82.816,0.47514503]
[1771598876979,12.06772367,82.866,82.816,0.47514503]
[1771598877202,7.18826471,82.86,82.816,0.47514503]
[1771598877877,0.49687099,82.859,82.816,0.47514503]
[1771598878787,0.49687099,82.859,82.818,0.47514503]
[1771598879285,0.49687099,82.883,82.822,0.47514503]
[1771598879491,0.49687099,82.899,82.838,0.47514503]
[1771598879875,7.18826471,82.89,82.838,0.47514503]
[1771598880276,7.18826471,82.9,82.847,0.28432314]
[1771598880477,7.18826471,82.9,82.848,0.47514503]
[1771598880696,7.18826471,82.89,82.846,0.47514503]
[1771598880898,7.18826471,82.87,82.847,12.0704431]
[1771598881187,0.49687099,82.879,82.847,12.0704431]
[1771598881495,7.18826471,82.87,82.847,12.0704431]
[1771598881693,0.49687099,82.879,82.847,12.0704431]
[1771598882001,7.18826471,82.87,82.847,12.0704431]
[1771598882187,0.49687099,82.879,82.847,12.0704431]
[1771598882693,7.18826471,82.87,82.839,0.47514503]
[1771598882909,7.18826471,82.87,82.84,12.07146306]
[1771598883200,0.49687099,82.869,82.84,12.07146306]
[1771598883907,7.18826471,82.86,82.831,0.47514503]
[1771598884212,0.49687099,82.859,82.83,12.07292043]
[1771598885082,0.49687099,82.868,82.826,0.47514503]
[1771598885278,7.18826471,82.86,82.826,0.47514503]
[1771598885699,0.49548423,82.878,82.826,0.47514503]
[1771598885890,7.18826471,82.87,82.826,0.47514503]
[1771598886486,0.49548423,82.869,82.826,0.47514503]
[1771598886892,7.18826471,82.85,82.823,12.07394081]
[1771598887089,0.49548423,82.859,82.823,30.18485203]
[1771598887598,12.06884066,82.858,82.824,0.49037605]
[1771598888602,0.49548423,82.859,82.824,0.49037605]
[1771598888798,30.16273574,82.884,82.824,0.49037605]
[1771598888992,7.18826471,82.88,82.828,0.49037605]
[1771598889302,12.06578264,82.879,82.83,0.49037605]
[1771598889796,12.06343477,82.896,82.838,0.49037605]
[1771598890389,0.4783058,82.895,82.838,0.49037605]
[1771598890991,0.4783058,82.889,82.838,0.49037605]
[1771598891188,12.54272481,82.889,82.84,0.49037605]
[1771598891582,0.4783058,82.888,82.84,0.49037605]
[1771598891977,7.18826471,82.89,82.84,0.49037605]
[1771598892396,0.4783058,82.896,82.84,0.49037605]
[1771598892702,0.4783058,82.896,82.839,42.25063073]
[1771598892703,0.4783058,82.907,82.848,0.49037605]
[1771598892879,0.4783058,82.919,82.858,0.49037605]
[1771598893078,0.4783058,82.919,82.865,0.28432314]
[1771598893301,12.53841337,82.918,82.869,0.49037605]
[1771598893615,0.4783058,82.917,82.869,0.49037605]
[1771598893804,12.05950135,82.923,82.869,0.49037605]
[1771598894284,0.4783058,82.927,82.869,0.49037605]
[1771598894480,0.4783058,82.927,82.872,0.28432314]
[1771598894687,30.13882059,82.95,82.868,102.57276631]
[1771598894688,0.4783058,82.939,82.879,0.49037605]
[1771598894884,0.4783058,82.929,82.879,0.49037605]
[1771598895287,12.05865328,82.928,82.881,0.49037605]
[1771598895602,0.4783058,82.938,82.881,0.49037605]
[1771598895990,0.4783058,82.929,82.881,0.49037605]
[1771598896190,0.4783058,82.919,82.88,42.22972972]
[1771598896601,0.4783058,82.928,82.881,0.49037605]
[1771598897300,0.4783058,82.926,82.883,0.49037605]
[1771598897910,0.4783058,82.934,82.883,0.49037605]
[1771598898084,0.4783058,82.939,82.889,0.49037605]
[1771598898704,0.28432314,82.949,82.889,0.49037605]
[1771598898909,7.18826471,82.94,82.889,0.49037605]
[1771598899212,7.18826471,82.94,82.891,0.49037605]
[1771598899506,12.05705397,82.939,82.891,0.49037605]
[1771598899813,7.66657051,82.94,82.891,0.49037605]
[1771598900610,12.53417824,82.948,82.891,0.49037605]
[1771598900784,7.18826471,82.94,82.891,0.49037605]
[1771598901187,12.53342134,82.953,82.897,0.49037605]
[1771598901509,7.18826471,82.96,82.899,0.49037605]
[1771598901690,0.4783058,82.959,82.899,0.49037605]
[1771598902209,0.4783058,82.949,82.899,0.49037605]
[1771598902590,7.18826471,82.94,82.899,0.49037605]
[1771598902811,0.4783058,82.929,82.892,42.22361626]
[1771598903112,0.4783058,82.929,82.854,0.49037605]
[1771598903409,7.66657051,82.92,82.868,0.49037605]
[1771598903593,12.05996213,82.919,82.868,0.49037605]
[1771598904118,0.4783058,82.92,82.868,0.49037605]
[1771598904414,0.4783058,82.928,82.868,0.49037605]
[1771598904994,0.4783058,82.919,82.868,0.49037605]
[1771598905190,12.06170769,82.907,82.869,12.06723865]
[1771598905413,12.06170769,82.907,82.87,0.49037605]
[1771598905630,0.4783058,82.931,82.87,0.49037605]
[1771598905793,0.28432314,82.929,82.87,0.49037605]
[1771598906711,7.18826471,82.93,82.878,0.49037605]
[1771598907009,0.4783058,82.929,82.878,0.49037605]
[1771598907412,7.18826471,82.92,82.88,0.49037605]
[1771598907710,0.4783058,82.909,82.879,12.06578264]
[1771598908288,0.4783058,82.919,82.88,0.49037605]
[1771598910311,12.06010757,82.918,82.882,0.49037605]
[1771598910609,0.4783058,82.917,82.882,0.49037605]
[1771598910816,0.4783058,82.935,82.882,0.49037605]
[1771598911006,0.4783058,82.954,82.892,0.49037605]
[1771598911314,0.4783058,82.949,82.898,0.49037605]
[1771598912515,0.4783058,82.948,82.9,0.49037605]
[1771598913093,0.4783058,82.939,82.9,0.49037605]
[1771598914325,0.4783058,82.929,82.891,12.0640359]
[1771598914511,12.05996213,82.919,82.891,12.0640359]
[1771598916101,12.05996213,82.919,82.892,0.49037605]
[1771598916505,12.05996213,82.919,82.832,102.61734593]
[1771598916506,7.18826471,82.91,82.858,0.49037605]
[1771598916698,0.4783058,82.909,82.858,0.49037605]
[1771598917110,48.20207372,82.984,82.834,10.85835268]
[1771598917111,12.05807167,82.932,82.873,0.28432314]
[1771598917399,0.4967244,82.929,82.878,0.49155006]
[1771598918203,0.78104754,82.939,82.88,0.49155006]
[1771598918521,7.18826471,82.93,82.88,0.49155006]
[1771598918710,0.4967244,82.938,82.881,0.28432314]
[1771598918916,12.35118269,83.01,82.888,0.49155006]
[1771598918917,0.4967244,82.946,82.888,0.49155006]
[1771598919117,0.4967244,82.939,82.888,0.49155006]
[1771598920311,0.4967244,82.937,82.89,0.49155006]
[1771598921316,0.4967244,82.929,82.889,42.22514446]
[1771598921707,0.4967244,82.919,82.889,12.06432699]
[1771598922219,0.4967244,82.909,82.874,0.49155006]
[1771598922422,0.4967244,82.908,82.874,0.49155006]
[1771598922624,12.06152417,82.909,82.829,0.49155006]
[1771598922625,0.4967244,82.879,82.829,0.49155006]
[1771598922824,7.18826471,82.87,82.829,0.49155006]
[1771598923130,0.4967244,82.879,82.829,0.49155006]
[1771598923509,0.4967244,82.896,82.829,0.49155006]
[1771598923713,0.4967244,82.907,82.839,0.49155006]
[1771598923910,7.69292346,82.9,82.849,0.49155006]
[1771598924109,0.4967244,82.9,82.849,0.49155006]
[1771598924312,0.4967244,82.899,82.851,0.49155006]
[1771598924621,0.4967244,82.908,82.851,0.49155006]
[1771598926716,7.19619906,82.9,82.853,0.49155006]
[1771598927130,0.4967244,82.898,82.853,0.49155006]
[1771598928127,0.4967244,82.899,82.853,0.49155006]
[1771598928835,0.4967244,82.899,82.852,42.24400134]
[1771598928836,0.4967244,82.889,82.855,0.49155006]
[1771598929224,0.4967244,82.889,82.854,12.06942332]
[1771598929422,0.4967244,82.879,82.854,12.06942332]
[1771598929629,0.4967244,82.869,82.811,0.49155006]
[1771598929923,0.4967244,82.869,82.819,0.49155006]
[1771598930309,0.4967244,82.859,82.819,0.49155006]
[1771598931541,12.56556506,82.858,82.821,0.49155006]
[1771598931911,0.4967244,82.857,82.821,0.49155006]
[1771598932512,0.4967244,82.849,82.82,12.07437816]
[1771598932812,0.4967244,82.858,82.821,0.49155006]
[1771598933028,0.4967244,82.867,82.821,0.49155006]
[1771598933311,7.19619906,82.86,82.821,0.49155006]
[1771598933524,7.19619906,82.86,82.823,0.49155006]
[1771598933731,0.4967244,82.867,82.823,0.49155006]
[1771598934026,0.4967244,82.877,82.823,0.49155006]
[1771598934322,0.4967244,82.905,82.849,0.49155006]
[1771598934524,0.4967244,82.904,82.849,0.49155006]
[1771598934717,0.4967244,82.899,82.849,0.49155006]
[1771598935119,12.55814113,82.909,82.849,0.49155006]
[1771598935712,12.06141673,82.909,82.851,0.49155006]
[1771598935914,0.4967244,82.908,82.851,0.49155006]
[1771598936134,0.4967244,82.93,82.859,0.49155006]
[1771598936434,0.4967244,82.926,82.869,0.49155006]
[1771598937340,0.4967244,82.935,82.879,0.49155006]
[1771598937837,12.55442956,82.935,82.879,0.49155006]
[1771598938218,7.19619906,82.93,82.881,0.49155006]
[1771598938418,12.05770516,82.935,82.881,0.49155006]
[1771598938419,7.69292346,82.92,82.881,0.49155006]
[1771598938719,0.78104754,82.929,82.881,0.49155006]
[1771598938919,0.4967244,82.928,82.881,0.49155006]
[1771598939532,0.4967244,82.918,82.881,0.49155006]
[1771598939735,0.4967244,82.909,82.874,12.55796487]
[1771598940041,0.4967244,82.909,82.874,12.06641481]
[1771598940240,0.4967244,82.899,82.866,12.06767552]
[1771598940626,7.4805222,82.91,82.867,0.49155006]
[1771598940816,7.19619906,82.91,82.867,0.49155006]
[1771598941151,0.4967244,82.919,82.869,0.49155006]
[1771598941537,12.05919529,82.925,82.869,0.49155006]